Cogmind - Beta 16 @@@ ROGUE MODE // 2025.12.14 @ 00:05:20 Player: Keyes Result: Destroyed by G-34 Mercenary with Small Laser Performance ------------- Evolutions (1) 500 Regions Visited (3) 600 Robots Destroyed (47) 235 Value Destroyed (937) 937 Prototype IDs (5) 100 Alien Tech Used (0) 0 Bonus (0) 0 TOTAL SCORE: 2372 Bonus ------- None Cogmind --------- Core Integrity 0/400 Matter 199/300 Energy 90/100 System Corruption 9% Temperature Cool (99) Movement Core (300) Ox5 Location -9/Storage Parts ------- > --- POWER (1) -------- (None) > --- PROPULSION (2) --- Aluminum Leg > --- UTILITY (4) ------ Medium Storage Unit Seismic Detector Targeting Computer ECM Suite > --- WEAPON (2) ------- Particle Cannon > --- INVENTORY (10) --- Ion Engine Cesium-ion Thruster Cesium-ion Thruster Cesium-ion Thruster Cesium-ion Thruster Seismic Detector ECM Suite Light Armor Plating Datajack Peak State ------------ > --- POWER ------------ Improved Ion Engine > --- PROPULSION ------- Light Treads Light Treads > --- UTILITY ---------- Large Storage Unit Seismic Detector Targeting Computer Hacking Suite > --- WEAPON ----------- Improved EM Shotgun Improved EM Shotgun > --- INVENTORY -------- Light Ion Engine Improved Ion Engine Wheel Cesium-ion Thruster Cesium-ion Thruster Cesium-ion Thruster Cesium-ion Thruster Medium Storage Unit Seismic Detector Targeting Computer Propulsion Shielding Light Armor Plating Light Cannon Datajack [Rating: 18] Favorites ----------- Power Ion Engine Engine Ion Engine Propulsion Light Treads Treads Light Treads Leg Aluminum Leg Wheel Wheel Flight Unit Cesium-ion Thruster Utility Seismic Detector Device Seismic Detector Storage Large Storage Unit Processor Targeting Computer Hackware Hacking Suite Weapon Small Laser Energy Gun Small Laser Energy Cannon Particle Cannon Ballistic Gun Light Assault Rifle Ballistic Cannon Light Cannon Launcher Mini Grenade Launcher Special Weapon Welding Torch Build | -11 -10 -9 -9 ------- Run | Yrd Mat Mat Sto Slots Evolved 2 | . . 2 . Power . | . . . . Propulsion . | . . . . Utility 2 | . . 2 . Weapon . | . . . . Parts Attached 36 | 7 8 19 2 Power 5 | 1 1 3 . Engine 5 | 1 1 3 . Core . | . . . . Reactor . | . . . . Propulsion 8 | 2 1 5 . Treads 3 | 1 1 1 . Leg 1 | . . 1 . Wheel 2 | 1 . 1 . Hover . | . . . . Flight 2 | . . 2 . Utility 12 | 2 5 4 1 Device 4 | 1 1 1 1 Storage 4 | 1 3 . . Processor 3 | . 1 2 . Hackware 1 | . . 1 . Protection . | . . . . Artifact . | . . . . Weapon 11 | 2 1 7 1 Energy Gun 5 | 1 . 4 . Energy Cannon 1 | . . . 1 Ballistic Gun 2 | 1 1 . . Ballistic Cannon 1 | . . 1 . Launcher 1 | . . 1 . Special Weapon 1 | . . 1 . Impact Weapon . | . . . . Slashing Weapon . | . . . . Piercing Weapon . | . . . . Special Melee Weapon . | . . . . Unidentified Prototypes 1 | . . 1 . Parts Lost 12 | . . 9 3 Power 4 | . . 3 1 Propulsion 3 | . . 1 2 Utility 1 | . . 1 . Weapon 4 | . . 4 . Highest Loss Streak 3 | . . 3 2 To Critical Strikes . | . . . . Average Backups 11 | 3 10 13 9 Power 1 | . 1 1 1 Propulsion 4 | 2 4 5 4 Utility 3 | . 3 4 3 Weapon . | . . . . Tool/Special . | . . . . Unused Backups 11 | . . 5 6 Power 2 | . . 1 1 Propulsion 5 | . . 3 2 Utility 3 | . . 1 2 Weapon . | . . . . Tool/Special 1 | . . . 1 Average Slot Usage (%) 96 | . 100 94 78 Engine 12 | . 14 10 10 Treads 19 | . 23 16 8 Wheel 3 | . 4 3 2 Device 11 | . 11 11 19 Storage 12 | . 14 11 11 Processor 9 | . 2 16 11 Hackware 1 | . . 4 . Energy Gun 12 | . 14 13 . Ballistic Gun 7 | . 14 1 . Ballistic Cannon 1 | . . 3 . Peak Build Rating 18 | 7 8 18 11 Average Rating 10 | 5 7 13 9 On Entrance 6 | . 7 8 11 Avg Prop Armor Cover (%) 12 | 14 12 11 14 Naked Turns . | . . . . Heaviest Build 34 | 14 28 34 24 Greatest Support 40 | 10 40 40 20 Greatest Overweight (x) 7 | 1 1 2 7 Average Overweight (x) . | . . . 1 Largest Inventory Capacity 25 | 8 25 15 10 Average Capacity 12 | 7 12 14 10 Most Carried 15 | 5 15 15 10 Average Carried 11 | 3 10 13 9 Final Capacity 15 | 8 15 10 10 Final Carried 15 | 5 15 10 9 Class Distribution -------------------- 100% | Mutant Dominant Class ---------------- Mutant | -10/Materials Mutant | -9/Materials Mutant | -9/Storage Resources | -11 -10 -9 -9 ----------- Run | Yrd Mat Mat Sto Matter Collected 806 | 242 189 375 . Remotely . | . . . . Salvage Created 1408 | 42 296 1028 42 Parts 101 | 6 34 59 2 Haulers Intercepted 1 | . 1 . . Recyclers Shooed 1 | . . 1 . Parts Field Recycled . | . . . . Retrieved Matter . | . . . . Parts Self-Destructed . | . . . . Prevented . | . . . . Parts Restored . | . . . . Kills | -11 -10 -9 -9 ------- Run | Yrd Mat Mat Sto Combat Hostiles Destroyed 31 | . 10 20 1 Guns 14 | . 10 4 . Cannons 6 | . . 5 1 AOE 9 | . . 9 . Classes Destroyed 11 | 1 6 4 . Worker 4 | . . 4 . Builder 2 | . 1 1 . Tunneler 3 | 2 1 . . Hauler 1 | . 1 . . Recycler 2 | . . 2 . Operator 2 | . 1 1 . Watcher 2 | . 1 1 . Swarmer 13 | . 9 4 . Grunt 13 | . 1 11 1 Brawler 1 | . . 1 . Sentry 4 | . . 4 . Best Kill Streak 13 | 1 4 13 1 Combat Bots Only 8 | . 3 8 1 Max Kills in Single Turn 7 | 1 2 7 1 Gunslinging 1 | . 1 . . Exploded 2 | . . 2 . Melee . | . . . . Uniques/NPCs Destroyed . | . . . . Combat | -11 -10 -9 -9 -------- Run | Yrd Mat Mat Sto Hostile Shots Fired 180 | . 46 97 37 Missed 42 | . 9 23 10 Hits 138 | . 37 74 27 Melee 6 | . . 6 . Projectile 132 | . 37 68 27 Critical Strikes 2 | . . 1 1 Damage Taken 1773 | . 315 1126 332 Core 445 | . 41 286 118 Absorbed by Shields . | . . . . Core Remaining (%) 91 | 100 83 . . Volleys Fired 114 | 4 45 55 10 Largest 2 | 2 2 2 1 Hottest 90 | 60 60 90 68 Shots Fired 182 | 8 90 74 10 Gun 144 | 8 90 46 . Cannon 28 | . . 18 10 Launcher 9 | . . 9 . Special 1 | . . 1 . Kinetic 69 | 4 45 20 . Thermal 62 | 4 45 3 10 Explosive 9 | . . 9 . Electromagnetic 42 | . . 42 . Robot Hit Streak 21 | 2 9 21 3 Robot Miss Streak 7 | 2 7 3 1 Penetration Max . | . . . . Secondary Targets 2 | . 2 . . Max Gunslinging Chain 1 | . 1 . . Shots Hit Robots 112 | 4 47 55 6 Core Hits 75 | 3 21 49 2 Critical Kills . | . . . . Critical Parts Destroyed . | . . . . Critical Strikes . | . . . . Melee Attacks . | . . . . Impact . | . . . . Slashing . | . . . . Piercing . | . . . . Sneak Attacks . | . . . . Combat Hostiles . | . . . . Follow-up Attacks . | . . . . Damage Inflicted 2517 | 64 481 1831 141 Guns 1156 | 64 481 611 . Cannons 366 | . . 225 141 Explosions 982 | . . 982 . Melee . | . . . . Ramming 11 | . . 11 . Kinetic 512 | 41 240 231 . Thermal 559 | 23 241 154 141 Explosive 516 | . . 516 . Electromagnetic 919 | . . 919 . Impact . | . . . . Slashing . | . . . . Piercing . | . . . . Highest Corruption 9 | . . 9 9 Average Corruption 8 | . . 8 9 Corruption Purged . | . . . . Corruption Blocked . | . . . . Effects 16 | . . 12 4 Message Errors 2 | . . 2 . Matter Fused 7 | . . 7 . Energy Discharges 6 | . . 2 4 Data Loss (major) 1 | . . 1 . Overload Shots . | . . . . Overflow Damage 65 | . . 65 . Projectiles . | . . . . Explosions 65 | . . 65 . Melee . | . . . . Knockbacks 1 | . . 1 . Impact . | . . . . Kinetic 1 | . . 1 . Secondary . | . . . . Self-Inflicted Damage 161 | . . 161 . Shots 6 | . . 6 . Rammed 2 | . . 2 . Targets Rammed 2 | . . 2 . Kicked . | . . . . Crushed . | . . . . Highest Temperature 323 | . 76 153 323 Average Temperature 54 | . 21 48 164 Received Heat Transfer 591 | . 36 360 195 Siege Activations . | . . . . Martial Activations . | . . . . Shielding Activations . | . . . . Robots Disrupted 1 | . . 1 . Combat Hostiles 1 | . . 1 . Robots Corrupted 2 | . . 2 . Combat Hostiles 2 | . . 2 . Parts Fried 4 | . . 4 . Impact Corruptions . | . . . . Robots Melted . | . . . . Combat Hostiles . | . . . . Parts Melted 2 | . 2 . . Heat Transferred 1059 | 50 550 200 259 Parts Sabotaged . | . . . . Parts Stolen . | . . . . Parts Stripped . | . . . . Power Chain Reactions 4 | . . 4 . Alert | -11 -10 -9 -9 ------- Run | Yrd Mat Mat Sto Maximum Alert Level 1 | . . 1 . Low Security (%) 97 | 100 100 94 100 Level 1 2 | . . 5 . Level 2 . | . . . . Level 3 . | . . . . Level 4 . | . . . . Level 5 . | . . . . High Security . | . . . . Max Security . | . . . . Peak Influence 317 | 5 123 317 138 Initial 131 | . . . 131 Average 50 | 1 46 52 101 Influence Increases 1051 | 10 349 655 37 Destroy 0b10 Robot/C 620 | . 200 400 20 Destroy 0b10 Robot/NC 80 | 10 25 45 . Destroy Leader 146 | . 44 92 10 Successful Hack 43 | . 19 17 7 Disable Machine 15 | . . 15 . Destroy Structure 72 | . 1 71 . Lose Combat Pursuer 75 | . 60 15 . Influence Decreases 973 | 10 349 344 270 Entered New Map 180 | . . . 180 Time Decay 684 | 10 349 265 60 Lost Part 109 | . . 79 30 Squads Dispatched 3 | . 1 2 . Investigation 1 | . . 1 . Extermination . | . . . . Reinforcement 2 | . 1 1 . Assault . | . . . . Garrison . | . . . . Intercept . | . . . . Searches Triggered . | . . . . Construction Impeded . | . . . . Haulers Reinforced . | . . . . Active Scanning Responses . | . . . . Cargo Convoy Interrupts . | . . . . Stealth | -11 -10 -9 -9 --------- Run | Yrd Mat Mat Sto Distress Signals 5 | . 2 2 1 Communications Jammed . | . . . . Distress Signals . | . . . . Times Spotted 61 | . 25 33 3 Peak Tracking Total 6 | . 4 6 3 Tactical Retreats 5 | . 3 1 1 ECM-based Alert Blocks 1 | . . . 1 Traps | -11 -10 -9 -9 ------- Run | Yrd Mat Mat Sto Traps Triggered 1 | . . 1 . Indirectly . | . . . . Trap Hack Attempts . | . . . . Triggered . | . . . . Disarmed . | . . . . Reprogrammed 6 | . 6 . . Reused . | . . . . Traps Extracted . | . . . . Installed . | . . . . Triggered . | . . . . Machines | -11 -10 -9 -9 ---------- Run | Yrd Mat Mat Sto Machines Disabled 1 | . . 1 . Max in Single Turn 1 | . . 1 . Machines Repaired . | . . . . Machines Dismantled . | . . . . Machines Sabotaged . | . . . . Overloaded Fab Kills . | . . . . Hacking | -11 -10 -9 -9 --------- Run | Yrd Mat Mat Sto Machines Accessed 11 | . 6 4 1 Terminals 8 | . 5 2 1 Fabricators . | . . . . Repair Stations 1 | . . 1 . Recycling Units 2 | . 1 1 . Scanalyzers . | . . . . Garrison Access . | . . . . Total Hacks 21 | . 15 5 1 Successful 13 | . 9 3 1 Failed 8 | . 6 2 . Catastrophic 2 | . 1 1 . Database Lockouts . | . . . . Manual 10 | . 6 4 . Terminals 18 | . 14 3 1 Fabricators . | . . . . Repair Stations 1 | . . 1 . Recycling Units 2 | . 1 1 . Scanalyzers . | . . . . Garrison Access . | . . . . Terminal Hacks 8 | . 6 1 1 Record 1 | . 1 . . Prototype ID Bank 2 | . 2 . . Open Door 1 | . . . 1 Branch Access Points 1 | . . 1 . Locate Traps 2 | . 2 . . Reprogram Traps 1 | . 1 . . Fabricator Hacks . | . . . . Repair Station Hacks 1 | . . 1 . Refit 1 | . . 1 . Recycling Unit Hacks 1 | . 1 . . Report Inventory 1 | . 1 . . Scanalyzer . | . . . . Garrison Access Hacks . | . . . . Unauthorized Hacks 3 | . 2 1 . Terminals 3 | . 2 1 . Botnet 3 | . 2 1 . Fabricators . | . . . . Repair Stations . | . . . . Recycling Units . | . . . . Scanalyzers . | . . . . Garrison Access . | . . . . Data Cores Recovered . | . . . . Used . | . . . . Hacking Detections 8 | . 5 3 . Full Trace Events . | . . . . Feedback Events . | . . . . Feedback Blocked . | . . . . Robot Schematics Acquired . | . . . . Robots Built . | . . . . Authchips . | . . . . Time . | . . . . Total Robot Build Rating . | . . . . Part Schematics Acquired . | . . . . Parts Built . | . . . . Authchips . | . . . . Time . | . . . . Total Part Build Rating . | . . . . Part Studies Acquired . | . . . . Parts Repaired . | . . . . Time . | . . . . Parts Recycled . | . . . . Recycled Matter . | . . . . Retrieved Matter . | . . . . Retrieved Components . | . . . . Parts Scanalyzed . | . . . . Part Schematics Acquired . | . . . . Parts Damaged . | . . . . Bothacking | -11 -10 -9 -9 ------------ Run | Yrd Mat Mat Sto Used RIF Installer . | . . . . Robots Hacked . | . . . . Non-combat . | . . . . Combat . | . . . . Robot Hacks Applied . | . . . . Relay Couplers Released . | . . . . Fabnet Peak Effective % . | . . . . Robots Rewired . | . . . . Allies Hacked . | . . . . Hacks Repelled . | . . . . Allies | -11 -10 -9 -9 -------- Run | Yrd Mat Mat Sto Total Allies . | . . . . Largest Group . | . . . . Highest-Rated Group . | . . . . Highest-Rated Ally . | . . . . Total Orders . | . . . . Ally Attacks . | . . . . Total Damage . | . . . . Kills . | . . . . Allies Corrupted . | . . . . Allies Melted . | . . . . Intel | -11 -10 -9 -9 ------- Run | Yrd Mat Mat Sto Active Infowar (turns) 1760 | 14 807 809 130 Seismic 1655 | 14 807 721 113 ECM 230 | . . 100 130 Robot Analysis Total . | . . . . Derelict Logs Recovered . | . . . . Drone Launches . | . . . . Drone Recoveries . | . . . . Exploration | -11 -10 -9 -9 ------------- Run | Yrd Mat Mat Sto Turns Passed 2065 | 90 1035 810 130 Spaces Moved 1113 | 71 627 368 47 Core 12 | 6 . . 6 Treads 611 | . 366 222 23 Legs . | . . . . Wheels 490 | 65 261 146 18 Hover . | . . . . Flight . | . . . . Fastest Speed 50 | 50 95 95 95 Average Speed 137 | 88 132 148 186 Slowest Speed 400 | 95 160 240 400 Overloaded Moves . | . . . . Propulsion Burnouts . | . . . . Robots Hopped . | . . . . Potential Cave-ins . | . . . . Cave-ins Triggered . | . . . . Exploration Rate (%) 31 | 4 81 35 7 Regions Visited 3 Branch Regions 1 Pre-discovered Areas . | . . . . Known Exits Taken 2 | . 1 1 . Unknown Exits Taken 1 | 1 . . . Scrap Searched . | . . . . Spaces Dug . | . . . . Terrain Destroyed 95 | . . 95 . Melee . | . . . . Projectile . | . . . . AOE 95 | . . 95 . Terrain Rammed . | . . . . Walls Destroyed . | . . . . Machines Disabled . | . . . . Actions | -11 -10 -9 -9 --------- Run | Yrd Mat Mat Sto Total 1474 | 87 745 561 81 Wait 141 | . 51 72 18 Move 1111 | 70 626 368 47 Hop . | . . . . Pick Up 30 | 6 8 16 . Fast Attach 16 | 6 1 7 2 Attach 17 | 1 1 14 1 Detach 2 | . 2 . . Swap 15 | . 7 7 1 Drop 27 | . 4 21 2 Fire 114 | 4 45 55 10 Melee . | . . . . Ram 1 | . . 1 . Kick . | . . . . Crush . | . . . . Escape Stasis . | . . . . Rewire . | . . . . Trap . | . . . . Miscellaneous . | . . . . Route ------- -11/Scrapyard -10/Materials (discovered 3 exits: *Mat x3) -9/Materials (discovered 2 exits: Min / *Sto) -9/Storage History --------- Turn | Location | Event 29 | -11/Scrapyard | Discovered new exit (range 15) 91 | -11/Scrapyard | Entered Materials 306 | -10/Materials | Build established: Mutant 609 | -10/Materials | Discovered new exit (range 10) 887 | -10/Materials | Discovered new exit (range 9) 903 | -10/Materials | Identified exit to Materials 1047 | -10/Materials | Discovered exit to Materials (range 15) 1126 | -10/Materials | Entered another Materials area 1126 | -9/Materials | Evolved 2 slots: Utility x2 1315 | -9/Materials | Identified exit to Mines 1315 | -9/Materials | Identified exit to Storage 1658 | -9/Materials | Lost 3 parts (1p1u1w) 1815 | -9/Materials | Core integrity fell below 50% 1866 | -9/Materials | Destroyed 8 combat bots 1936 | -9/Materials | Entered Storage 2054 | -9/Storage | Core integrity fell below 20% 2066 | -9/Storage | Destroyed by G-34 Mercenary with Small Laser Last Messages --------------- 01936_ Mni. Grenade Launcher broken. 01936_ Destabilizing: Short circuit. LOCATION=STORAGE GOAL=ESCAPE 01936_ Dropped Broken Mni. Grenade Launcher. 01937_ Dropped Welding Torch. 01949_ Connecting with Door Terminal... >>Open(Door) Sealed Heavy Doors opened. 01951_ Acquired Seismic Detector. 01957_ Wheel destroyed. 01974_ Acquired Particle Cannon. 01998_ System corrupted: Energy discharge (-84). 02019_ System corrupted: Energy discharge (-92). 02034_ Critical hit (Burn: +37). 02038_ System corrupted: Energy discharge (-85). 02040_ Lgt. Treads destroyed. 02051_ G-47 Trooper destroyed. 02055_ System corrupted: Energy discharge (-30). 02059_ Imp. Ion Engine destroyed. Map ----- +----------------------------------------------------+ | ?????????????????????????????????????????????????? | | ?????????????????????????????????????????????????? | | ?????????????????????????????????????????????????? | | ?????????????????????????????????????????????????? | | ?????????????????????????????????????????????????? | | ?????????????????????????????????????????????????? | | ?????????????????????????????????????????????????? | | ?????????????????????????????????????????????????? | | ?????????????????????????????????????????????????? | | ?????????????????????????????????????????????????? | | ?????????????????????????????????????????????????? | | ?????????????????????????????????????????????????? | | ?????????????????????????????????????????????????? | | ?????????????????????????????????????????????????? | | ?????????????????????????????????????????????????? | | ?????????????????????????????????????????????????? | | ?????????????????????????????????????????????????? | | ?????????????????????????????????????????????????? | | ?????????????????????????????????????????????????? | | ??????????###????????????????????????????????????? | | ??????#####T##???????????????????????????????????? | | ??????#!! #???????????????????????????????????? | | ??????#!!! #???????????????????????????????????? | | ??????##### #???????????????????????????????????? | | ?##########+##################+##????????????????? | | ?# @ [%= #????????????????? | | ?# ] g #????????????????? | | ?# | g #????????????????? | | ?#########+################+#####????????????????? | | ????# #???????????????????????????????? | | ????# #???????????????????????????????? | | ????# """ """ #???????????????????????????????? | | ????# """ """ #???????????????????????????????? | | ????# """ """ #???????????????????????????????? | | ????##############???????????????????????????????? | | | | | | | | | | | | | | | | | | | | | | | | | | | | | | | +----------------------------------------------------+ Best States ------------- Heat Dissipation 28 Energy Generation 12 Energy Capacity 265 Matter Stores 300 Matter Capacity 300 Sight Range 16 Terrain Scan Density 10 ECM Strength 1 Evasion (%) 41 Targeting Accuracy 10 Recoil Reduction 2 Offensive Hacking 10 Item Schematics ----------------- None Robot Schematics ------------------ None Fabricated ------------ Nothing Repaired ---------- Nothing Studied --------- None Alien Tech Used ----------------- None Achievements -------------- Fitting Room Ghost 'Em Physics Hates This One Trick Challenges ------------ None Game ------ Seed ChainTargetingWeb Manual? 0 Play Time 00:50:42 Cumulative 19.5 hours Start 2025.12.13 @ 23:11:59 End 2025.12.14 @ 00:05:20 Sessions 2 Manual Loads 0 Difficulty Rogue Special Mode None Game No. 19 Rogue 19 Adventurer 0 Explorer 0 Win Type - Total 0 Types 0/0/0/0/0/0/0/0/0/0 Lore% 20 Gallery% 21 Achievement% 13 Wizard Run 0 Options --------- Layout 0 ASCII 0 Keyboard 0 Movement Mouse Keybinds 0 Fullscreen 2 Font 36/X11++ Map View 76x50 Zoom Use 0% Tactical HUD 1 Map Filters NONE Filters NONE Steam 1 RUN: b09b75b3-84b7-49af-8036-7680b1b71beb